[Event "Cattolica Chess Festival 2022"]
[Site "Cattolica"]
[Date "2022.06.09"]
[Round "6.2"]
[White "Safarli, Eltaj"]
[Black "Rahul Srivatshav P"]
[Result "1/2-1/2"]
[ECO "C42"]
[WhiteElo "2600"]
[BlackElo "2458"]
[Annotator "TA"]
[PlyCount "78"]
[EventDate "2022.06.04"]
[EventCountry "ITA"]
[SourceTitle "playchess.com"]
[Source "ChessBase"]
[SourceQuality "1"]
[TimeControl "5400+30"]

{[%evp 16,78,2,0,2,0,15,0,10,-1,0,17,18,16,14,14,21,10,21,25,26,11,13,27,22,-8,0,-14,14,19,35,31,30,25,22,16,16,0,22,11,38,37,37,32,34,34,47,41,40,40,37,43,43,33,32,32,32,32,39,39,39,32,31,33,33]} 1. e4 {[%emt 0:31:43]} e5 {[%emt 0:30:05]} 2. Nf3 {[%emt 0:00:04]} Nf6 {[%emt 0:00:04]} 3. Nxe5 {[%emt 0:02:26]} d6 {[%emt 0:00:12]} 4. Nf3 {[%emt 0:00:05]} Nxe4 {[%emt 0:00:04]} 5. Qe2 {[%emt 0:00:21]} Qe7 {[%emt 0:00:07]} 6. d3 {[%emt 0:00:06]} Nf6 {[%emt 0:00:15]} 7. Bg5 {[%emt 0:00:22]} Qxe2+ {[%emt 0:06:21]} 8. Bxe2 {[%emt 0:00:06]} Be7 {[%emt 0:00:03]} 9. Nc3 {[%emt 0:00:28]} O-O {[%emt 0:02:14] 9...h6 is a critical line. C42: Petroff Defence: 3 Nxe5 and unusual White 3rd moves.} 10. O-O-O {[%emt 0:00:42]} h6 {[%emt 0:07:50]} 11. Bh4 {[%emt 0:01:04]} Re8 {[%emt 0:07:44] The position is equal.} 12. Rhe1 {[%emt 0:01:28]} Nbd7 {[%emt 0:17:25] [#]} 13. Nd4 $146 {[%emt 0:02:28]} ({Predecessor:} 13. h3 a6 14. d4 b5 15. Bd3 b4 16. Ne4 Bb7 17. Ned2 Nf8 18. Re2 Ne6 19. Rde1 {0-1 (31) Yeung,C (1806)-Sijses,W ICCF email 2006}) 13... c6 {[%emt 0:03:30]} 14. Bf1 {[%emt 0:07:08]} g6 {[%emt 0:03:19]} 15. Ne4 {[%emt 0:04:09] [#] Threatens to win with Nxf6+.} Kf8 {[%emt 0:01:27]} 16. Bg3 {[%emt 0:02:46]} Nxe4 {[%emt 0:00:10]} 17. dxe4 {[%emt 0:00:20]} ({Much weaker is} 17. Rxe4 Nf6 18. Ree1 Nh5 $15) 17... Nb6 {[%emt 0:02:47]} 18. Kb1 {[%emt 0:03:25]} d5 {[%emt 0:03:49]} 19. exd5 {[%emt 0:03:06]} Nxd5 {[%emt 0:00:17]} 20. Nb5 {[%emt 0:10:04]} Rd8 {[%emt 0:01:35]} 21. Bc4 {[%emt 0:04:53]} Bf5 {[%emt 0:05:09] aiming for ...Nb6.} 22. Bxd5 {[%emt 0:01:04][%cal Ob5c7] [#] Hoping for Nc7!} cxd5 {[%emt 0:00:03]} 23. Nd4 {[%emt 0:02:40]} Bd7 {[%emt 0:00:03]} 24. a3 {[%emt 0:04:16]} Rac8 {[%emt 0:00:33]} 25. Rd3 {[%emt 0:02:11]} Bc5 {[%emt 0:04:00]} 26. Bf4 {[%emt 0:03:51][%cal Bg3f4,Bf4d2,Bd2b4][%mdl 32]} g5 {[%emt 0:01:14]} 27. Bd2 {[%emt 0:00:31][%cal Oh2h4]} Bxd4 {[%emt 0:02:17]} 28. Rxd4 {[%emt 0:00:02] White is slightly better.} Bf5 {[%emt 0:01:07]} 29. Bb4+ {[%emt 0:02:38]} Kg8 {[%emt 0:00:10]} 30. Bc3 {[%emt 0:00:04]} Rc4 {[%emt 0:00:42]} 31. Re5 {[%emt 0:04:47][%csl LRd5,LRf5]} Be6 {[%emt 0:00:51]} 32. h4 {[%emt 0:01:19]} gxh4 {[%emt 0:00:00]} 33. Rh5 $1 {[%emt 0:00:00][%csl LRh4,LRh6]} Kh7 {[%emt 0:00:00]} 34. Rdxh4 {[%emt 0:00:00]} Rxh4 {[%emt 0:00:00]} 35. Rxh4 $14 {[%emt 0:00:00] KRB-KRB} Rg8 {[%emt 0:00:00]} 36. Rh2 {[%emt 0:00:00]} Kg6 {[%emt 0:00:00]} 37. Kc1 {[%emt 0:00:00]} Re8 {[%emt 0:00:00]} 38. Rh4 {[%emt 0:00:00]} Bf5 {[%emt 0:00:00]} 39. Kd2 {[%emt 0:00:00]} Re4 {[%emt 0:00:00] Weighted Error Value: White=0.05 (flawless) /Black=0.04 (flawless)} 1/2-1/2

[Event "Cattolica Chess Festival 2022"]
[Site "Cattolica"]
[Date "2022.06.09"]
[Round "6.3"]
[White "Bin-Suhayl, Ieysaa"]
[Black "Brunello, Sabino"]
[Result "0-1"]
[ECO "A07"]
[WhiteElo "2255"]
[BlackElo "2521"]
[Annotator "TA"]
[PlyCount "78"]
[EventDate "2022.06.04"]
[EventCountry "ITA"]
[SourceTitle "playchess.com"]
[Source "ChessBase"]
[SourceQuality "1"]
[TimeControl "5400+30"]

{[%evp 9,78,12,26,7,14,6,13,-3,19,12,17,-11,-8,-13,17,8,11,0,0,-2,0,-48,-7,-25,-46,-77,-65,-111,-77,-75,-64,-139,-141,-142,-141,-254,-152,-167,-92,-86,-96,-137,-132,-125,-122,-130,-122,-126,-127,-252,-245,-244,-247,-278,-263,-293,-267,-559,-510,-506,-509,-552,-543,-1072,-1032,-1579,-1554,-1731,-1673,-5514,-1395]} 1. Nf3 {[%emt 0:32:48]} d5 {[%emt 0:31:09]} 2. g3 {[%emt 0:00:26]} Bg4 {[%emt 0:00:35]} 3. Bg2 {[%emt 0:00:06]} Nd7 {[%emt 0:00:08]} 4. d4 {[%emt 0:00:50]} e6 {[%emt 0:00:53]} 5. O-O {[%emt 0:00:14]} c6 {[%emt 0:01:33]} 6. h3 {[%emt 0:00:53] A07: Réti Opening: New York and Capablanca Systems.} Bh5 {[%emt 0:00:12]} 7. c4 {[%emt 0:00:41]} Be7 {[%emt 0:00:11]} 8. Nc3 {[%emt 0:01:57] The position is equal.} Bxf3 {[%emt 0:05:08]} 9. Bxf3 {[%emt 0:02:06]} dxc4 {[%emt 0:00:06]} 10. e4 {[%emt 0:10:29][%cal Be2e4,Be4e5][%mdl 32]} Ngf6 {[%emt 0:00:42]} 11. Qe2 {[%emt 0:03:04] [#]} e5 $146 {[%emt 0:23:04]} ({Predecessor:} 11... Nb6 12. Be3 O-O 13. Rad1 Bb4 14. Bg2 Qe7 15. f4 Rad8 16. Qf2 Nfd7 17. g4 f6 {½-½ (51) Percivaldi,M (2347)-Svane,R (2549) Warsaw 2016}) 12. Rd1 {[%emt 0:05:23] dxe5 is the strong threat.} exd4 {[%emt 0:21:02]} 13. e5 {[%emt 0:10:44]} d3 {[%emt 0:00:11]} 14. Qe3 {[%emt 0:00:34]} Ng8 {[%emt 0:04:26]} 15. Qf4 {[%emt 0:06:49]} (15. Qe4 $11) 15... f6 {[%emt 0:03:58]} 16. exf6 {[%emt 0:02:53]} Ngxf6 {[%emt 0:00:06]} 17. Be3 {[%emt 0:02:48]} Qb8 {[%emt 0:02:25]} 18. Qd4 {[%emt 0:01:31]} (18. Qxc4 $15 {is more appropriate.} Ne5 19. Qf4) 18... Ne5 {[%emt 0:01:07]} 19. Bg2 {[%emt 0:02:08]} Qd6 {[%emt 0:00:12]} 20. f4 {[%emt 0:03:58]} (20. b3 $15) 20... Qxd4 $17 {[%emt 0:00:21]} 21. Bxd4 {[%emt 0:00:01]} Ned7 {[%emt 0:00:06][%cal Be5d7,Bd7f8,Bf8e6,Be6c7][%mdl 32]} 22. Na4 {[%emt 0:04:11]} (22. Rac1 $17) 22... Kf7 {[%emt 0:01:44]} (22... Nb6 $1 $19 {[%cal Rb6a4]} 23. Nxb6 axb6 24. Bxb6 Kf7) 23. b3 {[%emt 0:03:34]} cxb3 {[%emt 0:00:24]} (23... b5 $19 24. Nb2 Ba3 25. Bxc6 Rac8 26. Bxb5 Bxb2 27. Bxb2 c3) 24. axb3 {[%emt 0:00:02]} Rhd8 {[%emt 0:00:07][%cal Od3d2]} 25. Rac1 {[%emt 0:01:19]} Nf8 {[%emt 0:01:13]} 26. Bf2 {[%emt 0:00:21]} Ne6 {[%emt 0:00:51]} 27. Rc3 {[%emt 0:00:55]} d2 {[%emt 0:00:18] Strongly threatening ...Bb4.} 28. Rc2 {[%emt 0:00:53]} Bb4 {[%emt 0:01:09] And now ...g6 would win.} 29. Rc4 {[%emt 0:00:06] [#]} (29. f5 $17 {was the only chance.} Ng5 30. Rc4) 29... a5 $1 $19 {[%emt 0:00:18] Hoping for ...b5.} 30. f5 {[%emt 0:01:43] [#]} Nc7 {[%emt 0:00:31]} 31. Nb6 {[%emt 0:00:00]} Rab8 {[%emt 0:00:00]} 32. Rc2 {[%emt 0:00:00]} Re8 {[%emt 0:00:00]} 33. Kh2 $2 {[%emt 0:00:00]} (33. Rdxd2 Bxd2 34. Rxd2) 33... Rbd8 {[%emt 0:00:00] Black is clearly winning.} 34. Nc4 {[%emt 0:00:00]} Re1 {[%emt 0:00:00]} 35. Bxe1 {[%emt 0:00:00] [#]} dxe1=Q {[%emt 0:00:00]} 36. Rxd8 {[%emt 0:00:00]} (36. Rxe1 Bxe1) 36... Bc5 {[%emt 0:00:00][%csl Gc5][%cal Re1g1]} 37. h4 {[%emt 0:00:00]} Ncd5 {[%emt 0:00:00]} 38. Nd6+ {[%emt 0:00:00]} Ke7 {[%emt 0:00:00] ( -> ...Bg1+)} 39. Bxd5 {[%emt 0:00:50]} Bxd6 {[%emt 0:00:00] Weighted Error Value: White=0.73/Black=0.12 (very precise)} (39... cxd5 $142 40. Rg8 Nxg8 41. Nc8+ Kd8 42. Rxc5 Qf2+ 43. Kh3 Nf6 44. Rc1 Ne4 45. Rc3 Nxc3 46. Nd6 Ne2 47. Nf7+ Ke7 48. f6+ Kxf6 49. Nh8 Qxg3#) 0-1

[Event "Cattolica Chess Festival 2022"]
[Site "Cattolica"]
[Date "2022.06.09"]
[Round "6.4"]
[White "Bernadskiy, Vitaliy"]
[Black "Trost, Edvin"]
[Result "1-0"]
[ECO "B11"]
[WhiteElo "2636"]
[BlackElo "2366"]
[Annotator "TA"]
[PlyCount "55"]
[EventDate "2022.06.04"]
[EventCountry "ITA"]
[SourceTitle "playchess.com"]
[Source "ChessBase"]
[SourceQuality "1"]
[TimeControl "5400+30"]

{[%evp 9,55,-38,-28,-28,-22,-26,-20,-27,-14,-59,10,-10,0,11,0,6,114,47,65,47,69,48,52,41,54,38,58,-1,-11,-73,-86,-78,82,88,99,109,192,191,336,347,507,500,613,643,664,652,815,739]} 1. e4 {[%emt 0:41:53]} c6 {[%emt 0:30:17]} 2. Nc3 {[%emt 0:01:06]} d5 {[%emt 0:00:15]} 3. Qe2 {[%emt 0:00:05]} d4 {[%emt 0:04:05]} 4. Nd1 {[%emt 0:01:23]} e5 {[%emt 0:02:25]} 5. g3 {[%emt 0:00:10]} c5 {[%emt 0:02:37]} 6. d3 {[%emt 0:00:34] B11: Caro-Kann: Two Knights Variation.} Nc6 {[%emt 0:02:13]} 7. f4 {[%emt 0:02:36] 7.Bg2 is not played anymore.} Bd6 {[%emt 0:02:19]} 8. Nf3 {[%emt 0:00:59] The position is equal.} Nge7 {[%emt 0:08:50]} 9. Bg2 {[%emt 0:00:17] [#]} h5 $146 {[%emt 0:03:52]} (9... Bg4 10. Nf2 Bd7 11. f5 $11) ({Better is} 9... exf4 $15 10. Bxf4 O-O) ({Predecessor:} 9... Qc7 10. f5 Bd7 11. O-O O-O-O 12. c4 f6 13. Bd2 g6 14. Nh4 Rdf8 15. a3 a5 {0-1 (53) Pridorozhni,A (2597)-Svane,R (2613) Chess.com INT 2020}) 10. O-O {[%emt 0:03:22]} h4 {[%emt 0:03:19]} 11. fxe5 {[%emt 0:04:36]} Nxe5 {[%emt 0:01:59] ...hxg3 is the strong threat.} 12. Nxh4 {[%emt 0:00:30]} Ng4 {[%emt 0:04:53]} (12... Bg4 $11 13. Qe1 N7c6) 13. Nf3 {[%emt 0:03:27]} (13. e5 $16 Bxe5 14. Bf3) 13... Qc7 $14 {[%emt 0:01:28]} 14. e5 {[%emt 0:03:17]} Nxe5 {[%emt 0:00:14]} 15. Nxe5 {[%emt 0:00:32]} Bxe5 {[%emt 0:00:01]} 16. Nf2 {[%emt 0:00:15]} Be6 {[%emt 0:04:16]} 17. Re1 {[%emt 0:04:24]} Ng6 {[%emt 0:05:25]} (17... Bxg3 $2 18. hxg3 Qxg3 19. Qe5 Qxe5 20. Rxe5 $18) 18. Be4 {[%emt 0:02:11]} (18. Bg5 $14) 18... O-O-O $1 $11 {[%emt 0:06:55] And now ...Kb8 would win.} 19. Bxg6 {[%emt 0:05:45]} (19. Qf3 $1 $11 {remains equal.}) 19... Bxg3 $1 $17 {[%emt 0:00:10]} 20. h3 {[%emt 0:00:20]} (20. hxg3 {leads to mate.} Qxg3+ 21. Kf1 Rh1+ $3 {[%mdl 512]} 22. Nxh1 Bh3+) 20... Kb8 $2 {[%emt 0:11:25] [#]} (20... Bxh3 $2 21. Nxh3 fxg6 22. Bf4 $1 {[%mdl 512]} Bxf4 23. Qg4+ Qd7 24. Qxd7+ Kxd7 25. Nxf4 $16) (20... Bh2+ $17 {and life is bright.} 21. Kh1 Bg3) 21. Be4 $1 $16 {[%emt 0:04:03]} ({Avoid the trap} 21. Bg5 $2 Rd5 22. Ne4 fxg6 $19) 21... Bh2+ {[%emt 0:02:02] [#]} 22. Kf1 $1 {[%emt 0:00:40]} ({Worse is} 22. Kh1 Bxh3 23. Nxh3 Rxh3 $17) 22... Qg3 {[%emt 0:00:49]} (22... Rde8 $16) 23. Qf3 $18 {[%emt 0:00:26]} Qh4 {[%emt 0:01:26]} (23... Qc7 $142 24. Bd2 a6) 24. Bxb7 {[%emt 0:01:28]} Rh5 {[%emt 0:00:44]} (24... Bg3 $142 25. Ke2 Rde8) 25. Re4 {[%emt 0:00:24] White is clearly winning.} Qe7 {[%emt 0:00:12]} 26. Qxh5 {[%emt 0:00:30]} Qxb7 {[%emt 0:00:20]} 27. Qh4 {[%emt 0:00:44]} g5 {[%emt 0:00:22]} 28. Qxg5 {[%emt 0:00:11] Weighted Error Value: White=0.12 (very precise) /Black=0.49} 1-0

[Event "Cattolica Chess Festival 2022"]
[Site "Cattolica"]
[Date "2022.06.09"]
[Round "6.5"]
[White "Milikow, Elie"]
[Black "Shahil Dey"]
[Result "0-1"]
[ECO "B28"]
[WhiteElo "2428"]
[BlackElo "2369"]
[Annotator "TA"]
[PlyCount "107"]
[EventDate "2022.06.04"]
[EventCountry "ITA"]
[SourceTitle "playchess.com"]
[Source "ChessBase"]
[SourceQuality "1"]
[TimeControl "5400+30"]

{[%evp 13,107,20,34,22,24,18,38,2,0,0,0,0,0,0,0,0,0,-26,0,-16,-19,-9,-14,-75,-70,-68,-61,-79,-89,-109,-125,-102,-77,-93,-96,-344,-341,-333,-328,-391,-390,-389,-381,-457,-415,-585,-583,-567,-558,-672,-656,-810,-241,-560,-565,-560,-546,-845,-508,-493,-501,-491,-361,-337,-333,-368,-334,-343,-304,-420,-414,-541,-541,-704,-652,-650,-643,-554,-539,-667,-679,-749,-729,-1125,-1047,-2641,-1572,-5607,-4706,-29982,-29983,-29983,-29984,-29990,-29991,-29994]} 1. e4 {[%emt 0:30:03]} c5 {[%emt 0:30:05]} 2. Nf3 {[%emt 0:00:05]} a6 {[%emt 0:00:05]} 3. c3 {[%emt 0:00:16]} d5 {[%emt 0:02:11]} 4. exd5 {[%emt 0:00:30]} Qxd5 {[%emt 0:00:07]} 5. d4 {[%emt 0:00:33]} Nf6 {[%emt 0:00:06]} 6. Be2 {[%emt 0:03:43]} e6 {[%emt 0:01:58]} 7. O-O {[%emt 0:01:02]} Be7 {[%emt 0:00:32]} 8. Be3 {[%emt 0:07:17] B28: Sicilian: 2 Nf3 a6 (O'Kelly Variation).} cxd4 {[%emt 0:01:13]} 9. Nxd4 {[%emt 0:01:37]} e5 {[%emt 0:01:20]} 10. Nb3 {[%emt 0:04:16] [#] White is slightly better.} O-O $146 {[%emt 0:05:40]} ({Predecessor:} 10... Bf5 11. Qc1 Nbd7 12. Rd1 Qc6 13. N1d2 O-O 14. Nf1 Rfd8 15. Bf3 Qc7 16. Ng3 Bg6 {0-1 (28) Justra,M (1585)-Meisel,D (1855) Leipzig 2004}) 11. Bf3 {[%emt 0:09:23]} Qc4 {[%emt 0:07:00]} 12. Re1 {[%emt 0:05:58]} Qc7 {[%emt 0:01:05]} 13. N1d2 {[%emt 0:10:58]} Be6 {[%emt 0:01:17]} 14. Bg5 {[%emt 0:02:00]} Nbd7 {[%emt 0:02:51]} 15. Qe2 {[%emt 0:02:21]} Rfe8 {[%emt 0:00:34]} 16. Bh4 {[%emt 0:01:22]} a5 {[%emt 0:05:36][%cal Ba6a5,Ba5a4,Ba4a3][%mdl 32]} 17. Bg3 {[%emt 0:01:22]} Bd6 {[%emt 0:02:05]} 18. Qb5 {[%emt 0:02:55]} (18. Rad1 $11) 18... a4 $17 {[%emt 0:00:31]} 19. Nc1 {[%emt 0:00:33]} a3 {[%emt 0:05:33]} 20. Nd3 {[%emt 0:07:54]} Bf5 {[%emt 0:11:23] And now ...Qb6 would win.} 21. Ne4 {[%emt 0:05:18]} Ra5 {[%emt 0:01:51]} 22. Qb3 {[%emt 0:00:05]} Nxe4 {[%emt 0:01:39]} 23. Bxe4 {[%emt 0:00:06]} Be6 $36 {[%emt 0:00:28][%mdl 2048] Black is on the roll.} 24. Qd1 {[%emt 0:02:06] White does not recover from this.} (24. Qxb7 $17 Qxb7 25. Bxb7 axb2 26. Nxb2) 24... f5 $19 {[%emt 0:01:31]} 25. Bf3 {[%emt 0:00:17]} e4 {[%emt 0:01:30]} 26. Bxd6 {[%emt 0:00:38]} Qxd6 {[%emt 0:00:07]} 27. Nb4 {[%emt 0:00:14] Prevents Rd5.} Qc7 {[%emt 0:01:43]} ({Inferior is} 27... Qxd1 28. Bxd1 axb2 29. Rb1 $17) 28. Bh5 {[%emt 0:01:04]} g6 {[%emt 0:00:02]} 29. Be2 {[%emt 0:00:32]} (29. bxa3 {was called for.} gxh5 30. Qxh5) 29... axb2 {[%emt 0:00:11]} 30. Rb1 {[%emt 0:00:04]} Qxc3 {[%emt 0:00:40]} 31. Qd6 {[%emt 0:00:14]} Rc5 {[%emt 0:03:36]} 32. a3 {[%emt 0:00:00] [#]} Qxa3 $2 {[%emt 0:00:00]} (32... Qxe1+ $3 {[%mdl 512]} 33. Rxe1 Rc1) 33. Nc2 $2 {[%emt 0:00:00]} (33. Qd2 {nothing else works.}) 33... Qc3 {[%emt 0:00:00]} 34. Ne3 {[%emt 0:00:00]} Ne5 {[%emt 0:00:00]} 35. Red1 {[%emt 0:00:00]} Rc6 {[%emt 0:00:00]} 36. Nd5 {[%emt 0:00:00]} Rxd6 {[%emt 0:00:00]} 37. Nxc3 {[%emt 0:00:00]} Rxd1+ {[%emt 0:00:00]} 38. Nxd1 {[%emt 0:00:00]} Bc4 {[%emt 0:00:00]} 39. Bxc4+ {[%emt 0:00:22]} Nxc4 {[%emt 0:00:00]} 40. Nxb2 {[%emt 0:00:07][%mdl 4096] Endgame KRN-KRN} b5 {[%emt 0:00:00]} 41. Nd1 {[%emt 0:00:41]} Rb8 {[%emt 0:00:00]} 42. Rb4 {[%emt 0:00:42]} Rd8 {[%emt 0:00:00][%cal Rd8d1] [#]} 43. Ne3 {[%emt 0:01:20]} Nxe3 {[%emt 0:00:00]} 44. fxe3 {[%emt 0:00:05] KR-KR} Rb8 {[%emt 0:00:00]} 45. Kf2 {[%emt 0:00:13]} Kf7 {[%emt 0:00:00]} 46. g4 {[%emt 0:00:26]} Ke6 {[%emt 0:00:00]} 47. Kg3 {[%emt 0:00:05]} Ke5 {[%emt 0:00:00]} 48. h4 {[%emt 0:00:12]} h5 {[%emt 0:00:00]} 49. g5 {[%emt 0:00:13]} Rb7 {[%emt 0:00:00] aiming for ...Kd6.} 50. Rb1 {[%emt 0:00:26]} b4 {[%emt 0:00:00] ( -> ...Kd5)} 51. Kh3 {[%emt 0:00:15]} b3 {[%emt 0:00:00] Black mates.} 52. Rd1 {[%emt 0:00:14]} b2 {[%emt 0:00:00]} 53. Re1 {[%emt 0:00:03]} b1=Q {[%emt 0:00:00]} 54. Rg1 {[%emt 0:00:04] Weighted Error Value: White=0.69/Black=0.29 (precise)} 0-1

[Event "Cattolica Chess Festival 2022"]
[Site "Cattolica"]
[Date "2022.06.09"]
[Round "6.6"]
[White "Jobava, Baadur"]
[Black "Kolb, Tobias"]
[Result "1-0"]
[ECO "A14"]
[WhiteElo "2600"]
[BlackElo "2345"]
[Annotator "TA"]
[PlyCount "75"]
[EventDate "2022.06.04"]
[EventCountry "ITA"]
[SourceTitle "playchess.com"]
[Source "ChessBase"]
[SourceQuality "1"]
[TimeControl "5400+30"]

{[%evp 10,75,25,-18,-1,-4,-9,-11,-14,-4,0,-21,-31,-30,0,0,0,0,0,0,29,6,6,10,14,0,27,0,0,0,0,0,0,4,12,0,0,0,0,0,0,0,0,-15,0,0,0,0,0,0,105,93,349,342,552,547,523,517,579,567,828,855,939,910,5716,5265,12847,5381]} 1. c4 {[%emt 0:50:40]} e6 {[%emt 0:30:20]} 2. g3 {[%emt 0:00:17]} d5 {[%emt 0:00:05]} 3. Bg2 {[%emt 0:00:07]} Nf6 {[%emt 0:00:04]} 4. Nf3 {[%emt 0:00:11]} Be7 {[%emt 0:00:43]} 5. O-O {[%emt 0:00:12]} O-O {[%emt 0:00:04]} 6. Qc2 {[%emt 0:00:08]} d4 {[%emt 0:01:47] is now more promising than 6...c5. A14: English Opening: 1...e6 with b3 by White.} 7. e3 {[%emt 0:01:17]} c5 {[%emt 0:00:23]} 8. exd4 {[%emt 0:00:09]} cxd4 {[%emt 0:00:03] The position is equal.} 9. d3 {[%emt 0:00:09]} Nc6 {[%emt 0:00:33]} 10. a3 {[%emt 0:00:13]} a5 $1 {[%emt 0:00:09] Against b4} 11. Bg5 {[%emt 0:00:11]} Nd7 {[%emt 0:05:47]} 12. Bxe7 {[%emt 0:00:12]} Qxe7 {[%emt 0:00:04]} 13. Nbd2 {[%emt 0:00:14]} Nc5 {[%emt 0:04:53]} 14. Rfe1 {[%emt 0:01:07] [#]} Re8 $146 {[%emt 0:18:37]} ({Predecessor:} 14... e5 15. Ne4 h6 16. Nfd2 Nxd3 17. Qxd3 f5 18. f4 fxe4 19. Bxe4 Qf6 20. Bxc6 bxc6 21. Rxe5 {1-0 (36) Buss,R (2395)-Urban,L (2123) Graechen 2013}) 15. Nb3 {[%emt 0:04:49]} Nxb3 {[%emt 0:02:21]} 16. Qxb3 {[%emt 0:01:02]} a4 {[%emt 0:14:42]} 17. Qd1 {[%emt 0:01:06]} Bd7 {[%emt 0:00:24]} 18. h4 {[%emt 0:05:17]} h6 {[%emt 0:02:17]} 19. b4 {[%emt 0:01:41] Strongly threatening b5.} axb3 $1 {[%emt 0:00:08]} 20. Qxb3 {[%emt 0:00:06]} Ra7 {[%emt 0:01:18]} 21. Qb6 {[%emt 0:04:26]} Rea8 {[%emt 0:12:56]} 22. a4 {[%emt 0:06:26]} Qd8 {[%emt 0:02:00]} 23. Qxd8+ {[%emt 0:01:43]} Rxd8 {[%emt 0:00:04]} 24. Reb1 {[%emt 0:02:15]} Rda8 {[%emt 0:00:18]} 25. Nd2 {[%emt 0:00:12]} Kf8 {[%emt 0:01:41]} 26. c5 {[%emt 0:01:08]} Rxa4 {[%emt 0:01:13]} 27. Rxa4 {[%emt 0:00:08]} Rxa4 {[%emt 0:00:02]} 28. Rxb7 {[%emt 0:00:22]} Be8 {[%emt 0:00:45]} 29. Nc4 {[%emt 0:00:40]} Ra1+ {[%emt 0:00:45]} (29... Ra7 $1 $11 30. Rb6 Rc7) 30. Kh2 $16 {[%emt 0:00:07] Hoping for Rb6. White is more active.} Rc1 $2 {[%emt 0:00:27][%mdl 8192] A mistake that costs the game.} (30... f6 $16) 31. Rb6 $18 {[%emt 0:01:46]} Rxc4 $2 {[%emt 0:00:00]} (31... Nd8 {might work better.} 32. c6 Nxc6) 32. dxc4 {[%emt 0:00:00][%cal Bd3c4,Bc4c5][%mdl 4128] Endgame KRB-KBN. White is clearly winning.} Ne5 {[%emt 0:00:00]} 33. c6 {[%emt 0:00:00][%cal Bc5c6,Bc6c7][%mdl 32] [#] Inhibits Nd7. aiming for c7.} Ke7 {[%emt 0:00:00]} 34. c7 {[%emt 0:00:00]} Bd7 {[%emt 0:00:00]} 35. c5 {[%emt 0:00:00]} d3 {[%emt 0:00:00]} 36. Rd6 {[%emt 0:00:00] And now Bb7 would win.} g5 {[%emt 0:00:00]} 37. Bb7 {[%emt 0:00:00] [#] White wants to mate with hxg5.} g4 {[%emt 0:00:00]} 38. Kg2 {[%emt 0:00:00] Weighted Error Value: White=0.05 (flawless) /Black=0.31} 1-0